Department Family,Entity,Date,Expense Type,Expense Area,Supplier,Transaction Number,Amount,VAT Registration Number
Department of Health,Chelsea and Westminster Hospital NHS Foundation Trust,40484,ELECTRICTY,Facilities Management,SCOTTISH AND SOUTHERN ENERGY PLC,6246231,132444.07,
Department of Health,Chelsea and Westminster Hospital NHS Foundation Trust,40484,STOCK,Chelsea & Westminster NHS Foundation Holding,BRISTOL-MYERS SQUIBB PHARMACEUTICALS LIMITED,6247659,57668.53,
Department of Health,Chelsea and Westminster Hospital NHS Foundation Trust,40484,STOCK,Chelsea & Westminster NHS Foundation Holding,GILEAD SCIENCES LTD.,6247171,274539.48,
Department of Health,Chelsea and Westminster Hospital NHS Foundation Trust,40484,TELECOMMUNICATIONS SLA,Facilities Management,IMPERIAL COLLEGE HEALTHCARE NHS TRUST,6246052,47218.76,
Department of Health,Chelsea and Westminster Hospital NHS Foundation Trust,40486,AUC,Chelsea & Westminster NHS Foundation Holding,BAM CONSTRUCTION LTD,6247755,794994.19,
Department of Health,Chelsea and Westminster Hospital NHS Foundation Trust,40486,AUC,Chelsea & Westminster NHS Foundation Holding,LONGCROSS CONSTRUCTION LTD,6249899,92055.24,
Department of Health,Chelsea and Westminster Hospital NHS Foundation Trust,40486,CONSULTANCY CHARGES,Finance ,LINEA GROUP LIMITED,6247897,23760,
Department of Health,Chelsea and Westminster Hospital NHS Foundation Trust,40486,SOFTWARE LICENCES & MAINTENANCE,IC&T & EPR,BRIGHTSTRAND INTERNATIONAL LTD,6250087,27244.06,
Department of Health,Chelsea and Westminster Hospital NHS Foundation Trust,40486,SOFTWARE LICENCES & MAINTENANCE,IC&T & EPR,ORACLE CORPORATION UK LIMITED,6250070,30527.52,
Department of Health,Chelsea and Westminster Hospital NHS Foundation Trust,40486,STOCK,Chelsea & Westminster NHS Foundation Holding,JANSSEN-CILAG LTD,6247745,73491,
Department of Health,Chelsea and Westminster Hospital NHS Foundation Trust,40490,R&D CONTRACTED SERVICES - NON PAY,Research & Development Projs,IMPERIAL COLLEGE,6245744,10235.58,
Department of Health,Chelsea and Westminster Hospital NHS Foundation Trust,40490,RECHARGE ACCOUNTS,Chelsea & Westminster NHS Foundation Holding,NHS SUPPLY CHAIN,6245127,104350.83,
Department of Health,Chelsea and Westminster Hospital NHS Foundation Trust,40490,STOCK,Chelsea & Westminster NHS Foundation Holding,ALLIANCE HEALTHCARE (DISTRIBUTION)LTD,6248057,38961.87,
Department of Health,Chelsea and Westminster Hospital NHS Foundation Trust,40490,STOCK,Chelsea & Westminster NHS Foundation Holding,GILEAD SCIENCES LTD.,6247176,93444.23,
Department of Health,Chelsea and Westminster Hospital NHS Foundation Trust,40490,STOCK,Chelsea & Westminster NHS Foundation Holding,GILEAD SCIENCES LTD.,6247177,284158.3,
Department of Health,Chelsea and Westminster Hospital NHS Foundation Trust,40492,AUC,Chelsea & Westminster NHS Foundation Holding,B BRAUN MEDICAL LTD/AESCULAP ACADEMIA,6250869,315722.5
Department of Health,Chelsea and Westminster Hospital NHS Foundation Trust,40492,CONSULTANCY CHARGES,HIEC,GOODMAN MASSON,6250350,-32430
Department of Health,Chelsea and Westminster Hospital NHS Foundation Trust,40492,CONSULTANCY CHARGES,HIEC,GOODMAN MASSON,6250351,32430
Department of Health,Chelsea and Westminster Hospital NHS Foundation Trust,40492,NATIONAL AMBULANCE,Facilities Management,OLYMPIC (SOUTH) LTD,6251211,59358.1
Department of Health,Chelsea and Westminster Hospital NHS Foundation Trust,40492,R&D CONTRACTED SERVICES - NON PAY,Research & Development Projs,EDINBURGH NAPIER UNIVERSITY,6251157,29288.76
Department of Health,Chelsea and Westminster Hospital NHS Foundation Trust,40492,STOCK,Chelsea & Westminster NHS Foundation Holding,ALLIANCE HEALTHCARE (DISTRIBUTION)LTD,6248006,54133.61
Department of Health,Chelsea and Westminster Hospital NHS Foundation Trust,40492,STOCK,Chelsea & Westminster NHS Foundation Holding,BRISTOL-MYERS SQUIBB PHARMACEUTICALS LIMITED,6249005,62756.23
Department of Health,Chelsea and Westminster Hospital NHS Foundation Trust,40492,STOCK,Chelsea & Westminster NHS Foundation Holding,JANSSEN-CILAG LTD,6248998,109131.02
Department of Health,Chelsea and Westminster Hospital NHS Foundation Trust,40492,VIRAL RESISTANCE TESTING,Anaesthetics,LAB 21 LTD,6251246,21750
Department of Health,Chelsea and Westminster Hospital NHS Foundation Trust,40493,AUC,Chelsea & Westminster NHS Foundation Holding,AVK/SEG (UK) LTD,6251430,495526.88
Department of Health,Chelsea and Westminster Hospital NHS Foundation Trust,40493,DRUGS,HIV/GUM,HEALTHCARE AT HOME LIMITED,6248974,111254.1
Department of Health,Chelsea and Westminster Hospital NHS Foundation Trust,40493,NATIONAL BLOOD SERVICE CONTRACT,Service Level Agreements,NHS BLOOD AND TRANSPLANT,6249080,81912.12
Department of Health,Chelsea and Westminster Hospital NHS Foundation Trust,40493,NON DOMESTIC RATES AND COUNCIL TAXES,Facilities Management,ROYAL BOROUGH OF KENSINGTON & CHELSEA.....,6251424,135517.52
Department of Health,Chelsea and Westminster Hospital NHS Foundation Trust,40493,PREPAYMENTS,Chelsea & Westminster NHS Foundation Holding,ROYAL BOROUGH OF KENSINGTON & CHELSEA.....,6251424,27103.48
Department of Health,Chelsea and Westminster Hospital NHS Foundation Trust,40493,STOCK,Chelsea & Westminster NHS Foundation Holding,ABBOTT LABORATORIES LTD,6249008,54865.45
Department of Health,Chelsea and Westminster Hospital NHS Foundation Trust,40497,DRUGS,HIV/GUM,HEALTHCARE AT HOME LIMITED,6248976,133381.98
Department of Health,Chelsea and Westminster Hospital NHS Foundation Trust,40497,STOCK,Chelsea & Westminster NHS Foundation Holding,ALLIANCE HEALTHCARE (DISTRIBUTION)LTD,6244140,52663.29
Department of Health,Chelsea and Westminster Hospital NHS Foundation Trust,40497,STOCK,Chelsea & Westminster NHS Foundation Holding,GILEAD SCIENCES LTD.,6249237,271427.12
Department of Health,Chelsea and Westminster Hospital NHS Foundation Trust,40498,STOCK,Chelsea & Westminster NHS Foundation Holding,BRISTOL-MYERS SQUIBB PHARMACEUTICALS LIMITED,6249232,42052.02
Department of Health,Chelsea and Westminster Hospital NHS Foundation Trust,40500,AUC,Chelsea & Westminster NHS Foundation Holding,AREA SQ LTD,6219910,44017.56
Department of Health,Chelsea and Westminster Hospital NHS Foundation Trust,40500,AUC,Chelsea & Westminster NHS Foundation Holding,COMPUTACENTER UK LTD,6245072,-33000
Department of Health,Chelsea and Westminster Hospital NHS Foundation Trust,40500,CLINICAL LITIGATION,Governance & Corporate Affairs,NHS LITIGATION AUTHORITY,6252808,512392
Department of Health,Chelsea and Westminster Hospital NHS Foundation Trust,40500,CONSULTANCY CHARGES,Facilities Management,MONTAGU EVANS,6249682,40649.7
Department of Health,Chelsea and Westminster Hospital NHS Foundation Trust,40500,MEDICAL ILLUSTRATION,Service Level Agreements,MEDICAL ILLUSTRATION UK LTD,6246951,134631.54
Department of Health,Chelsea and Westminster Hospital NHS Foundation Trust,40500,MEDICAL ILLUSTRATION,Service Level Agreements,MEDICAL ILLUSTRATION UK LTD,6249397,33922
Department of Health,Chelsea and Westminster Hospital NHS Foundation Trust,40500,RECHARGE ACCOUNTS,Chelsea & Westminster NHS Foundation Holding,NHS SUPPLY CHAIN,6247681,111006.5
Department of Health,Chelsea and Westminster Hospital NHS Foundation Trust,40500,RECHARGE ACCOUNTS,Chelsea & Westminster NHS Foundation Holding,NHS SUPPLY CHAIN,6249473,94704.48
Department of Health,Chelsea and Westminster Hospital NHS Foundation Trust,40500,STOCK,Chelsea & Westminster NHS Foundation Holding,GILEAD SCIENCES LTD.,6249420,78617.96
Department of Health,Chelsea and Westminster Hospital NHS Foundation Trust,40500,STOCK,Chelsea & Westminster NHS Foundation Holding,JANSSEN-CILAG LTD,6251476,104152.22
Department of Health,Chelsea and Westminster Hospital NHS Foundation Trust,40500,WATER & SEWERAGE RATES,Facilities Management,THAMES WATER UTILITIES LTD,6249433,49214.27
Department of Health,Chelsea and Westminster Hospital NHS Foundation Trust,40504,GAS,Facilities Management,TOTAL GAS & POWER LTD,6248867,36796.33
Department of Health,Chelsea and Westminster Hospital NHS Foundation Trust,40504,SOFTWARE LICENCES & MAINTENANCE,IC&T & EPR,BRIGHTSTRAND INTERNATIONAL LTD,6250088,37666.98
Department of Health,Chelsea and Westminster Hospital NHS Foundation Trust,40504,SOFTWARE LICENCES & MAINTENANCE,IC&T & EPR,BT GLOBAL SERVICES,6249432,39323.56
Department of Health,Chelsea and Westminster Hospital NHS Foundation Trust,40505,PATHOLOGY SLA (HHT),Service Level Agreements,IMPERIAL COLLEGE HEALTHCARE NHS TRUST,6252540,1102536
Department of Health,Chelsea and Westminster Hospital NHS Foundation Trust,40505,STOCK,Chelsea & Westminster NHS Foundation Holding,BRISTOL-MYERS SQUIBB PHARMACEUTICALS LIMITED,6251471,61701.55
Department of Health,Chelsea and Westminster Hospital NHS Foundation Trust,40505,STOCK,Chelsea & Westminster NHS Foundation Holding,GILEAD SCIENCES LTD.,6251503,280769.33
Department of Health,Chelsea and Westminster Hospital NHS Foundation Trust,40507,AUC,Chelsea & Westminster NHS Foundation Holding,BAM CONSTRUCTION LTD,6253970,400656.76
Department of Health,Chelsea and Westminster Hospital NHS Foundation Trust,40507,AUC,Chelsea & Westminster NHS Foundation Holding,KARL STORZ ENDOSCOPY UK LTD,6251805,40414.43
Department of Health,Chelsea and Westminster Hospital NHS Foundation Trust,40507,DRUGS,HIV/GUM,HEALTHCARE AT HOME LIMITED,6250160,129212.43
Department of Health,Chelsea and Westminster Hospital NHS Foundation Trust,40507,DRUGS,HIV/GUM,HEALTHCARE AT HOME LIMITED,6251426,93900.31
Department of Health,Chelsea and Westminster Hospital NHS Foundation Trust,40507,STOCK,Chelsea & Westminster NHS Foundation Holding,HEALTHCARE AT HOME LIMITED,6252170,67210
Department of Health,Chelsea and Westminster Hospital NHS Foundation Trust,40507,STOCK,Chelsea & Westminster NHS Foundation Holding,HEALTHCARE AT HOME LIMITED,6252180,38610
Department of Health,Chelsea and Westminster Hospital NHS Foundation Trust,40507,STOCK,Chelsea & Westminster NHS Foundation Holding,JANSSEN-CILAG LTD,6251477,76436.75
Department of Health,Chelsea and Westminster Hospital NHS Foundation Trust,40507,STOCK,Chelsea & Westminster NHS Foundation Holding,PHOENIX HEALTHCARE DISTRIBUTION LTD.,6251703,43738.2
Department of Health,Chelsea and Westminster Hospital NHS Foundation Trust,40507,VICTORIA SHC SLA,Service Level Agreements,CENTRAL LONDON COMMUNITY HEALTHCARE,6230118,74429
Department of Health,Chelsea and Westminster Hospital NHS Foundation Trust,40507,VICTORIA SHC SLA,Service Level Agreements,CENTRAL LONDON COMMUNITY HEALTHCARE,6251243,-29293
Department of Health,Chelsea and Westminster Hospital NHS Foundation Trust,40511,ADDITIONAL SUPPORT (CCN),Facilities Management,ISS MEDICLEAN LTD.,6250952,31712.74
Department of Health,Chelsea and Westminster Hospital NHS Foundation Trust,40511,ADDITIONAL SUPPORT (CCN),Facilities Management,ISS MEDICLEAN LTD.,6251854,31712.74
Department of Health,Chelsea and Westminster Hospital NHS Foundation Trust,40511,AUC,Chelsea & Westminster NHS Foundation Holding,GRATTE BROTHERS.,6250985,39091.46
Department of Health,Chelsea and Westminster Hospital NHS Foundation Trust,40511,AUC,Chelsea & Westminster NHS Foundation Holding,LONGCROSS CONSTRUCTION LTD,6254600,251295.61
Department of Health,Chelsea and Westminster Hospital NHS Foundation Trust,40511,CLEANING CONTRACT,Facilities Management,ISS MEDICLEAN LTD.,6250954,87393
Department of Health,Chelsea and Westminster Hospital NHS Foundation Trust,40511,CONTRACT CATERING - FIXED CHARGE,Facilities Management,ISS MEDICLEAN LTD.,6250954,34749.08
Department of Health,Chelsea and Westminster Hospital NHS Foundation Trust,40511,MEDICAL ILLUSTRATION,Service Level Agreements,MEDICAL ILLUSTRATION UK LTD,6252458,36911.34
Department of Health,Chelsea and Westminster Hospital NHS Foundation Trust,40511,MSSE MAINTENANCE,Peri - Op,PURICORE INTERNATIONAL LTD,6254299,80017.5
Department of Health,Chelsea and Westminster Hospital NHS Foundation Trust,40511,PORTERING CONTRACT,Facilities Management,ISS MEDICLEAN LTD.,6250954,30734.67
Department of Health,Chelsea and Westminster Hospital NHS Foundation Trust,40511,PURCHASE OF HEALTHCARE FROM PRIVATE ORGANISATN,Surgery,MEDIHOME LTD,6251005,31635.75
Department of Health,Chelsea and Westminster Hospital NHS Foundation Trust,40511,RECHARGE ACCOUNTS,Chelsea & Westminster NHS Foundation Holding,NHS SUPPLY CHAIN,6249869,92648.6
Department of Health,Chelsea and Westminster Hospital NHS Foundation Trust,40511,SECURITY CONTRACT,Facilities Management,ISS MEDICLEAN LTD.,6250954,20744.33
Department of Health,Chelsea and Westminster Hospital NHS Foundation Trust,40511,STOCK,Chelsea & Westminster NHS Foundation Holding,BRISTOL-MYERS SQUIBB PHARMACEUTICALS LIMITED,6251473,27733.61
Department of Health,Chelsea and Westminster Hospital NHS Foundation Trust,40511,STOCK,Chelsea & Westminster NHS Foundation Holding,GILEAD SCIENCES LTD.,6251500,221483.45
Department of Health,Chelsea and Westminster Hospital NHS Foundation Trust,40511,STOCK,Chelsea & Westminster NHS Foundation Holding,JANSSEN-CILAG LTD,6251480,76409.13
Department of Health,Chelsea and Westminster Hospital NHS Foundation Trust,40511,STOCK,Chelsea & Westminster NHS Foundation Holding,ROCHE PRODUCTS LTD,6251994,27804.93
